Workbook

Sheet Титул
AK2: Утверждаю:
AK3: Директор ______________
AK4: ГОУ СПО "МППК"
AK5: М.Н. Верхотурцев
AK6: « | AN6: » | AR6: 201 | AU6: г
O12: УЧЕБНЫЙ ПЛАН
B13: Государственного образовательного учреждения среднего профессионального образования
C14: «Мишкинский профессионально-педагогический колледж»
J15: по специальности среднего профессионального образования
F17: 51001 | L17: Профессиональное обучение (по отраслям)
L18: Лесное и лесопарковое хозяйство
J20: по программе углубленной подготовки
AA25: Квалификация: | AI25: специалист лесного и лесопаркового хозяйства,
AA26: мастер производственного обучения
AA28: Форма обучения- | AJ28: очная
AA29: Нормативный срок обучения- | AN29: 4 | AP29: г | AQ29: 10 | AS29: мес
AA30: На базе | AE30: основного общего образования
AA31: Профиль | AF31: технический

Sheet Сводные
A1: Сводные данные по бюджету времени (в неделях)
A3: Курсы | B3: Обучение по дисциплинам и междисциплинарным курсам | C3: Учебная практика | D3: Производственная практика | F3: Промежуточная аттестация | G3: Государственная итоговая аттестация | H3: Каникулы | I3: Всего
D4: по профилю специальности | E4: преддипломная
E5: (для СПО)
A6: 1 | B6: 2 | C6: 3 | D6: 4 | E6: 5 | F6: 6 | G6: 7 | H6: 8 | I6: 9
A7: I курс | B7: =I7-H7-G7-F7-E7-D7-C7 -> 39 | F7: 2 | H7: 11 | I7: 52
A8: II курс | B8: =I8-H8-G8-F8-E8-D8-C8 -> 39 | C8: 2 | F8: 1 | H8: 10 | I8: 52
A9: III курс | B9: 33 | C9: 4 | D9: 3 | F9: 2 | H9: 10 | I9: 52
A10: VI курс | B10: 28 | C10: 4 | D10: 8 | F10: 2 | H10: 10 | I10: 52
A11: V курс | B11: 21 | C11: 1 | D11: 3 | E11: 8 | F11: 2 | G11: 6 | H11: 2 | I11: 43
A12: Всего | B12: =SUM(B7:B11) -> 160 | C12: 11 | D12: 14 | E12: 8 | F12: 9 | G12: 6 | H12: 43 | I12: 251
K13: Удалить строку

Sheet План уч проц
S2: Техник
A3: Индекс | B3: Наименование циклов, дисциплин, профессиональных модулей, МДК, практик | C3: Форма промежуточной аттестации | F3: Учебная нагрузка обучающихся (час.) | L3: Учебная и производственная практика | M3: Распределение обязательной нагрузки по курсам и семестрам[2] (час. в семестр)
F7: максимальная | G7: самостоятельная работа | H7: Обязательная аудиторная | M7: I курс | O7: II курс | Q7: III курс | S7: IV курс | U7: V курс
C8: З | D8: ДЗ | E8: Э | H8: всего занятий | I8: в т. ч. | M8: 1 семестр | N8: 2 семестр | O8: 3 семестр | P8: 4 семестр | Q8: 5 семестр | R8: 6 семестр | S8: 7 семестр | T8: 8 семестр | U8: 9 семестр | V8: 10 семестр
I9: лекций, уроков, семинаров | J9: лаб. и практ. занятий | K9: Курсовая | M9: сем. | N9: сем. | O9: сем. | P9: сем. | Q9: сем. | R9: сем. | S9: сем. | T9: сем. | U9: сем. | V9: сем.
M10: 17 | N10: 22 | O10: 17 | P10: 24 | Q10: 16 | R10: 24 | S10: 16 | T10: 24 | U10: 16 | V10: 17
M11: 17 | N11: 22 | O11: 17 | P11: 22 | Q11: 13 | R11: 20 | S11: 10 | T11: 18 | U11: 14 | V11: 7
M12: нед | N12: нед | O12: нед | P12: нед | Q12: нед | R12: нед | S12: нед | T12: нед | U12: нед | V12: нед
A13: 1 | B13: 2 | C13: 3 | D13: 4 | E13: 5 | F13: 6 | G13: 7 | H13: 8 | I13: 9 | J13: 10 | K13: 11 | L13: 12 | M13: 13 | N13: 14 | O13: 15 | P13: 16 | Q13: 17 | R13: 18 | S13: 19 | T13: 20 | U13: 21 | V13: 22
A14: О.00 | B14: Общеобразовательный цикл | H14: =SUM(H15:H26) -> 1404 | M14: =SUM(M15:M26) -> 612 | N14: =SUM(N15:N26) -> 792 | O14: =SUM(O15:O98)/O10 -> 137.1764706 | P14: =SUM(P15:P98)/P10 -> 136.5 | Q14: 129.375 | R14: 135.6666667 | S14: 121 | T14: 138 | U14: 147.5 | V14: 71.29411765
A15: ОДБ.01 | B15: Русский язык | E15: 2 | H15: =SUM(M15:R15) -> 78 | M15: 34 | N15: 44
A16: ОДБ.02 | B16: Литература | D16: 2 | H16: =SUM(M16:R16) -> 117 | M16: 51 | N16: 66
A17: ОДБ.03 | B17: Иностранный язык | D17: 2 | H17: 117 | M17: 51 | N17: 66
A18: ОДБ.04 | B18: История | D18: 2 | H18: 78 | M18: 34 | N18: 44
A19: ОДБ.05 | B19: Обществознание (включая экономику и право) | D19: 2 | H19: 78 | M19: 34 | N19: 44
A20: ОДБ.06 | B20: Химия | D20: 2 | H20: 78 | M20: 34 | N20: 44
A21: ОДБ.07 | B21: Биология | D21: 2 | H21: 78 | M21: 34 | N21: 44
A22: ОДБ.08 | B22: Основы безопасности жизнедеятельности | D22: 2 | H22: 78 | M22: 34 | N22: 44
A23: ОДБ.09 | B23: Физическая культура | D23: 2 | H23: 117 | M23: 51 | N23: 66
A24: ОДП.01 | B24: Математика | E24: 2 | H24: 234 | M24: 102 | N24: 132
A25: ОДП.02 | B25: Физика | E25: 2 | H25: 195 | M25: 85 | N25: 110
A26: ОДП.03 | B26: Информатика и ИКТ | D26: 2 | H26: 156 | M26: 68 | N26: 88
B27: Всего по циклам ОПОП | F27: =F28+F34+F38 -> 6534 | G27: 2178 | H27: =H28+H34+H38 -> 4356 | I27: =I28+I34+I38 -> 2206 | J27: 2150 | K27: 60 | O27: =O28+O34+O38 -> 612 | P27: =P28+P34+P38 -> 792 | Q27: 468 | R27: 720 | S27: 360 | T27: 648 | U27: 504 | V27: 252
A28: ОГСЭ.00 | B28: Общий гуманитарный и социально-экономический цикл | F28: =SUM(F29:F33) -> 942 | G28: 314 | H28: 628 | I28: 104 | J28: 524 | O28: =SUM(O29:O33) -> 116 | P28: =SUM(P29:P33) -> 88 | Q28: 52 | R28: 176 | S28: 40 | T28: 72 | U28: 56 | V28: 28
A29: ОГСЭ.01 | B29: Основы философии | D29: 3 | F29: 54 | G29: =F29-H29 -> 6 | H29: =SUM(O29:V29) -> 48 | I29: 48 | O29: 48
A30: ОГСЭ.02 | B30: История | E30: 6 | F30: 54 | G30: 6 | H30: =SUM(O30:V30) -> 48 | I30: 48 | R30: 48
A31: ОГСЭ.03 | B31: Психология общения | D31: 6 | F31: 54 | G31: 6 | H31: =SUM(O31:V31) -> 48 | I31: 6 | J31: 42 | R31: 48
A32: ОГСЭ.04 | B32: Иностранный язык | D32: 10 | F32: 296 | G32: 54 | H32: =SUM(O32:V32) -> 242 | J32: 242 | O32: 34 | P32: 44 | Q32: 26 | R32: 40 | S32: 20 | T32: 36 | U32: 28 | V32: 14
A33: ОГСЭ.05 | B33: Физическая культура | C33: 3,4,5,6,7,8,9 | D33: 10 | F33: 484 | G33: 242 | H33: =SUM(O33:V33) -> 242 | I33: 2 | J33: 240 | O33: 34 | P33: 44 | Q33: 26 | R33: 40 | S33: 20 | T33: 36 | U33: 28 | V33: 14
A34: ЕН.00 | B34: Математический и общий естественнонаучный цикл | F34: =SUM(F35:F37) -> 315 | G34: =SUM(G35:G37) -> 105 | H34: 210 | I34: 90 | J34: 120 | O34: =SUM(O35:O37) -> 48 | P34: =SUM(P35:P37) -> 42 | Q34: 86 | R34: 34 | S34: 0 | T34: 0 | U34: 0 | V34: 0
A35: ЕН.01 | B35: Математика | D35: 3 | F35: =ROUNDDOWN(H35*1.5,0) -> 72 | G35: =F35-H35 -> 24 | H35: =SUM(O35:V35) -> 48 | I35: 20 | J35: 28 | O35: 48
A36: ЕН.02 | B36: Информатика и информационно-коммуникационные технологии в профессиональной деятельности | D36: 6 | F36: 114 | G36: =F36-H36 -> 38 | H36: =SUM(O36:V36) -> 76 | I36: 4 | J36: 72 | Q36: 42 | R36: 34
A37: ЕН.03 | B37: Экологические основы природопользования | D37: 5 | F37: 129 | G37: 43 | H37: =SUM(O37:V37) -> 86 | I37: 66 | J37: 20 | P37: 42 | Q37: 44
A38: П.00 | B38: Профессиональный цикл | F38: =F39+F57 -> 5277 | G38: =G39+G57 -> 1759 | H38: =H39+H57 -> 3518 | I38: =I39+I57 -> 2012 | J38: =J39+J57 -> 1506 | K38: 60 | L38: 900 | O38: =O39+O57 -> 448 | P38: =P39+P57 -> 662 | Q38: 330 | R38: 510 | S38: 320 | T38: 576 | U38: 448 | V38: 224
A39: ОП.00 | B39: Общепрофессиональные дисциплины | F39: =SUM(F40:F56) -> 1875 | G39: 625 | H39: =SUM(H40:H56) -> 1250 | I39: =SUM(I40:I56) -> 794 | J39: 456 | O39: =SUM(O40:O56) -> 400 | P39: =SUM(P40:P56) -> 496 | Q39: 102 | R39: 68 | S39: 0 | T39: 0 | U39: 120 | V39: 64
A40: ОП.01 | B40: Общая и профессиональная педагогика | E40: 4 | F40: 147 | G40: 49 | H40: =SUM(O40:V40) -> 98 | I40: 64 | J40: 34 | O40: 32 | P40: 66
A41: ОП.02 | B41: Общая и профессиональная психология | E41: 4 | F41: 147 | G41: 49 | H41: 98 | I41: 64 | J41: 34 | O41: 32 | P41: 66
A42: ОП.03 | B42: Возрастная анатомия, физиология и гигиена | E42: 4 | F42: 66 | G42: 22 | H42: 44 | I42: 32 | J42: 12 | P42: 44
A43: ОП.04 | B43: Правовое обеспечение профессиональной деятельности | D43: 10 | F43: 96 | G43: 32 | H43: 64 | I43: 44 | J43: 20 | V43: 64
A44: ОП.05 | B44: Безопасность жизнедеятельности | D44: 6 | F44: 102 | G44: 34 | H44: 68 | I44: 20 | J44: 48 | P44: 68
A45: ОП.06 | B45: Геодезия | D45: 4 | F45: 180 | G45: 60 | H45: 120 | I45: 70 | J45: 50 | Q45: 52 | R45: 68
A46: ОП.07 | B46: Ботаника | E46: 4 | F46: 180 | G46: 60 | H46: 120 | I46: 90 | J46: 30 | P46: 90 | Q46: 30
A47: ОП.08 | B47: Почвоведение | D47: 3 | F47: 120 | G47: 40 | H47: 80 | I47: 50 | J47: 30 | P47: 80
A48: ОП.09 | B48: Дендрология и лесоведение | D48: 7 | F48: 180 | G48: 60 | H48: 120 | I48: 80 | J48: 40 | U48: 120
A49: ОП.10 | B49: Основы лесной энтомологии, фитопатологии и биологии лесных зверей и птиц | D49: 3 | F49: 90 | G49: 30 | H49: 60 | I49: 38 | J49: 22 | O49: 60
A50: ОП.11 | B50: Основы древесиноведения и лесного товароведения | E50: 4 | F50: 162 | G50: 54 | H50: 108 | I50: 66 | J50: 42 | O50: 66 | P50: 42
A51: ОП.12 | B51: Основы устройств тракторов и автомобилей | D51: 5 | F51: 90 | G51: 30 | H51: 60 | I51: 30 | J51: 30 | P51: 40 | Q51: 20
A52: ОП.13 | B52: Правовые и организационные основы государственного управления лесами | D52: 3 | F52: 60 | G52: 20 | H52: 40 | I52: 30 | J52: 10 | O52: 40
A53: ОП.14 | B53: Охрана труда | D53: 3 | F53: 48 | G53: 16 | H53: 32 | I53: 22 | J53: 10 | O53: 32
A54: ОП.15 | B54: Управление качеством | D54: 3 | F54: 48 | G54: 16 | H54: 32 | I54: 22 | J54: 10 | O54: 32
A55: ОП.16 | B55: Русский язык и культура речи | D55: 3 | F55: 48 | G55: 16 | H55: 32 | I55: 22 | J55: 10 | O55: 32
A56: ОП.17 | B56: Экономика организации и менеджмент | D56: 3 | F56: 111 | G56: 37 | H56: 74 | I56: 50 | J56: 24 | O56: 74
A57: ПМ.00 | B57: Профессиональные модули | F57: =F58+F62+F66+F86+F73+F78+F70+F82+F91+F96 -> 3402 | G57: 1134 | H57: =H58+H62+H66+H86+H73+H78+H70+H82+H91+H96 -> 2268 | I57: =I58+I62+I66+I86+I73+I78+I70+I82+I91+I96 -> 1218 | J57: 1050 | K57: 60 | L57: 900 | O57: =O58+O62+O66+O70+O73+O78+O82+O86+O91+O96 -> 48 | P57: =P58+P62+P66+P70+P73+P78+P82+P86+P91+P96 -> 166 | Q57: 228 | R57: 442 | S57: 320 | T57: 576 | U57: 328 | V57: 160
A58: ПМ.01 | B58: Организация учебно-производственного процесса | E58: 5(к) | F58: =F59 -> 270 | G58: =G59 -> 90 | H58: =H59 -> 180 | I58: 108 | J58: 72 | K58: 30 | L58: 72 | O58: =O59 -> 48 | P58: =P59 -> 102 | Q58: 30 | R58: 0 | S58: 0 | T58: 0 | U58: 0 | V58: 0
A59: МДК.01.01 | B59: Методика профессионального обучения (по отраслям) | D59: 5 | F59: 270 | G59: 90 | H59: =SUM(O59:V59) -> 180 | I59: 108 | J59: 72 | K59: 30 | O59: 48 | P59: 102 | Q59: 30
A60: УП.01 | B60: Учебная практика | L60: =SUM(N60:W60) -> 36 | P60: 36
A61: ПП.01 | B61: Производственная практика | C61: 5 | L61: =SUM(N61:W61) -> 36 | Q61: 36
A62: ПМ.02 | B62: Педагогическое сопровождение группы обучающихся в урочной и внеурочной деятельности | E62: 5(к) | F62: =F63 -> 195 | G62: =G63 -> 65 | H62: 130 | I62: =I63 -> 78 | J62: =J63 -> 52 | L62: =L64+L65 -> 108 | O62: =O63 -> 0 | P62: =P63 -> 64 | Q62: 66 | R62: 0 | S62: 0 | T62: 0 | U62: 0 | V62: 0
A63: МДК.02.01 | B63: Теоретические и методические основы педагогического сопровождения группы обучающихся в урочной и внеурочной деятельности | D63: 5 | F63: 195 | G63: 65 | H63: =SUM(O63:V63) -> 130 | I63: 78 | J63: 52 | P63: 64 | Q63: 66
A64: УП.02 | B64: Учебная практика | L64: =SUM(M64:W64) -> 36 | P64: 36
A65: ПП.02 | B65: Производственная практика | L65: =SUM(M65:W65) -> 72 | Q65: 72
A66: ПМ.03 | B66: Методическое обеспечение учебно-производственного процесса и педагогическое сопровождение группы обучающихся профессиям рабочих (служащих) | E66: 7(к) | F66: =F67 -> 198 | G66: =G67 -> 66 | H66: 132 | I66: 82 | J66: 50 | L66: =L68+L69 -> 108 | O66: =O67 -> 0 | P66: =P67 -> 0 | Q66: 0 | R66: 68 | S66: 64 | T66: 0 | U66: 0
A67: МДК.03.01 | B67: Теоретические и прикладные аспекты методической работы мастера производственного обучения | D67: 7 | F67: 198 | G67: 66 | H67: 132 | I67: 82 | J67: 50 | R67: 68 | S67: 64
A68: УП.03 | B68: Учебная практика | L68: =SUM(M68:W68) -> 36 | R68: 36
A69: ПП.04 | B69: Производственная практика | D69: 7 | L69: =SUM(M69:W69) -> 72 | S69: 72
A70: ПМ.04 | B70: Участие в организации технологического процесса | E70: 7(к) | F70: =SUM(F71) -> 300 | G70: 100 | H70: =SUM(H71) -> 200 | I70: =SUM(I71) -> 100 | J70: =SUM(J71) -> 100 | K70: 30 | L70: 36 | O70: =O71 -> 0 | P70: =P71 -> 0 | Q70: 0 | R70: 106 | S70: 94 | T70: 0 | U70: 0 | V70: 0
A71: МДК.04.01 | B71: Организация техногического процесса (по отраслям) | D71: 7 | F71: =H71*1.5 -> 300 | G71: =F71-H71 -> 100 | H71: =SUM(O71:V71) -> 200 | I71: 100 | J71: 100 | K71: 30 | R71: 106 | S71: 94
A72: ПП.04 | B72: Производственная практика | C72: 7 | L72: =SUM(M72:W72) -> 36 | S72: 36
A73: ПМ.05 | B73: Выполнение работ по одной или нескольким профессиям рабочих, должностям служащих | E73: 8(к) | F73: =SUM(F74:F75) -> 1140 | G73: 380 | H73: =SUM(H74:H75) -> 760 | I73: =SUM(I74:I75) -> 260 | J73: 500 | L73: =L76+L77 -> 252 | O73: =O74+O75 -> 0 | P73: =P74+P75 -> 0 | Q73: 132 | R73: 166 | S73: 66 | T73: 396 | U73: 0 | V73: 0
A74: МДК.05.01 | B74: Лесовод | F74: =ROUNDDOWN(H74*1.5,0) -> 576 | G74: =F74-H74 -> 192 | H74: =SUM(O74:V74) -> 384 | I74: 134 | J74: 250 | Q74: 132 | R74: 166 | S74: 26 | T74: 60
A75: МДК.05.02 | B75: Рабочий зеленого хозяйства | F75: 564 | G75: 188 | H75: 376 | I75: 126 | J75: 250 | S75: 40 | T75: 336
A76: УП.05 | B76: Учебная практика | C76: 7 | L76: =SUM(M76:W76) -> 144 | R76: 72 | S76: 72
A77: ПП.05 | B77: Производственная практика | L77: =SUM(M77:W77) -> 108 | T77: 108
A78: ПМ.06 | B78: Организация и проведение мероприятий по воспроизводству лесов и лесоразведению | E78: 9(к) | F78: =SUM(F79:F80) -> 180 | G78: =SUM(G79:G80) -> 60 | H78: =SUM(H79:H80) -> 120 | I78: =SUM(I79:I80) -> 50 | J78: =SUM(J79:J80) -> 70 | L78: 72 | O78: =O79 -> 0 | P78: =P79 -> 0 | Q78: 0 | R78: 0 | S78: 0 | T78: 0 | U78: 120 | V78: 0
A79: МДК.06.01 | B79: Лесоразведение и воспроизводство лесов | D79: 9 | F79: =ROUNDDOWN(H79*1.5,0) -> 180 | G79: =F79-H79 -> 60 | H79: =SUM(O79:V79) -> 120 | I79: 50 | J79: 70 | U79: 120
A80: УП.06 | B80: Учебная практика | L80: 36 | T80: 36
A81: ПП.06 | B81: Производственная практика | C81: 9 | L81: =SUM(M81:V81) -> 36 | U81: 36
A82: ПМ.07 | B82: Организация и проведение мероприятий по охране и защите лесов | E82: 10(к) | F82: =SUM(F83:F83) -> 222 | G82: =SUM(G83:G83) -> 74 | H82: =SUM(H83:H83) -> 148 | I82: =SUM(I83:I83) -> 118 | J82: =SUM(J83:J83) -> 30 | L82: 72 | O82: =O83 -> 0 | P82: =P83 -> 0 | Q82: 0 | R82: 0 | S82: 0 | T82: 0 | U82: 78 | V82: 70
A83: МДК.07.01 | B83: Охрана и защита лесов | D83: 10 | F83: =ROUNDDOWN(H83*1.5,0) -> 222 | G83: =F83-H83 -> 74 | H83: =SUM(O83:V83) -> 148 | I83: 118 | J83: 30 | U83: 78 | V83: 70
A84: УП.07 | B84: Учебная практика | L84: =SUM(M84:W84) -> 36 | V84: 36
A85: ПП.07 | B85: Производственная практика | C85: 10 | L85: =SUM(M85:W85) -> 36 | V85: 36
A86: ПМ.08 | B86: Организация использования лесов | E86: 8 (к) | F86: =SUM(F87:F88) -> 492 | G86: =SUM(G87:G88) -> 164 | H86: =SUM(H87:H88) -> 328 | I86: =SUM(I87:I88) -> 222 | J86: =SUM(J87:J88) -> 106 | L86: 72 | O86: =O87+O88 -> 0 | P86: =P87+P88 -> 0 | Q86: 0 | R86: 102 | S86: 78 | T86: 148 | U86: 0 | V86: 0
A87: МДК.08.01 | B87: Заготовка древесины и других лесных ресурсов | C87: 7 | F87: 270 | G87: 90 | H87: 180 | I87: 120 | J87: 60 | R87: 102 | S87: 78
A88: МДК.08.02 | B88: Использование лесов для осуществления рекреационной деятельности | C88: 8 | F88: 222 | G88: 74 | H88: 148 | I88: 102 | J88: 46 | T88: 148
A89: УП.08 | B89: Учебная практика | C89: 7 | L89: =SUM(M89:W89) -> 36 | R89: 36
A90: ПП.08 | B90: Производственная практика | C90: 8 | L90: =SUM(M90:W90) -> 36 | T90: 36
A91: ПМ.09 | B91: Организация и проведение работ по лесоустройству и таксации | E91: 10(к) | F91: =SUM(F92:F93) -> 192 | G91: =SUM(G92:G93) -> 64 | H91: =SUM(H92:H93) -> 128 | I91: =SUM(I92:I93) -> 88 | J91: =SUM(J92:J93) -> 40 | L91: 72 | O91: =O92+O93 -> 0 | P91: =P92+P93 -> 0 | Q91: 0 | R91: 0 | S91: 18 | T91: 32 | U91: 46 | V91: 32
A92: МДК.09.01 | B92: Лесная таксация | D92: 10 | F92: =H92*1.5 -> 96 | G92: =F92-H92 -> 32 | H92: =SUM(N92:V92) -> 64 | I92: 44 | J92: 20 | U92: 32 | V92: 32
A93: МДК.09.02 | B93: Лесоустройство | E93: 9 | F93: =H93*1.5 -> 96 | G93: =F93-H93 -> 32 | H93: =SUM(N93:V93) -> 64 | I93: 44 | J93: 20 | S93: 18 | T93: 32 | U93: 14
A94: УП.09 | B94: Учебная практика | L94: =SUM(M94:W94) -> 36 | S94: 36
A95: ПП.09 | B95: Производственная практика | L95: 36 | T95: 36
A96: ПМ.10 | B96: Организация работы структурного подразделения | E96: 10(к) | F96: =SUM(F97) -> 213 | G96: 71 | H96: =SUM(H97) -> 142 | I96: =SUM(I97) -> 112 | J96: =SUM(J97) -> 30 | L96: 36 | O96: =O97 -> 0 | P96: =P97 -> 0 | Q96: 0 | R96: 0 | S96: 0 | T96: 0 | U96: 84 | V96: 58
A97: МДК.10.01 | B97: Основы управления структурным подразделением | D97: 10 | F97: =H97*1.5 -> 213 | G97: 71 | H97: =SUM(M97:V97) -> 142 | I97: 112 | J97: 30 | U97: 84 | V97: 58
A98: ПП.10 | B98: Производственная практика | C98: 9 | L98: 36 | U98: 36
A99: Всего | F99: =SUM(F38+F34+F28+F14) -> 6534 | G99: =SUM(G38+G34+G28+G14) -> 2178 | H99: =SUM(H38+H34+H28+H14) -> 5760 | I99: =SUM(I38+I34+I28+I14) -> 2206 | J99: =SUM(J38+J34+J28+J14) -> 2150 | K99: 60 | L99: 900 | M99: =SUM(M15:M98) -> 612 | N99: 792 | O99: =O103+O105+O106 -> 612 | P99: =P103+P105+P106 -> 864 | Q99: 576 | R99: 864 | S99: 576 | T99: 864 | U99: 576 | V99: =V103+V105+V106 -> 612
A100: Кол-во часов в неделю | M100: =SUM(M15:M26)/M11 -> 36 | N100: =SUM(N15:N26)/N11 -> 36 | O100: =O99/O10 -> 36 | P100: =P99/P10 -> 36 | Q100: 36 | R100: 36 | S100: 36 | T100: 36 | U100: 36 | V100: 36
A101: ПДП | B101: Преддипломная практика | V101: 288
A102: ГИА | B102: Государственная итоговая аттестация | V102: 6
A103: Консультации на учебную группу по 100 часов в год (всего 500 час.) | H103: Всего | I103: дисциплин и МДК | M103: =M99-M105-M106 -> 612 | N103: =N99-N105-N106 -> 792 | O103: =O27 -> 612 | P103: =P27 -> 792 | Q103: 468 | R103: 720 | S103: 360 | T103: 648 | U103: 504 | V103: 252
A105: Государственная (итоговая) аттестация 216 часов | I105: учебной практики | M105: =M89+M84+M80+M76+M68+M64+M60 -> 0 | N105: 0 | O105: =O89+O84+O80+O76+O68+O64+O60+O94 -> 0 | P105: =P89+P84+P80+P76+P68+P64+P60+P94 -> 72 | Q105: 0 | R105: 144 | S105: 108 | T105: 36 | U105: 0 | V105: 36
A106: Промежуточная аттестация (9 недель) - 324 часа | I106: производств. практика/преддипломная практика | M106: =M90+M85+M81+M77+M72+M65+M61+M69 -> 0 | N106: 0 | O106: =O90+O85+O81+O77+O72+O65+O61+O69+O95+O98 -> 0 | P106: =P90+P85+P81+P77+P72+P65+P61+P69+P95+P98 -> 0 | Q106: 108 | R106: 0 | S106: 108 | T106: 180 | U106: 72 | V106: =V90+V85+V81+V77+V72+V65+V61+V69+V95+V98+V101 -> 324
A107: 1.1. Дипломный проект (работа) | I107: экзаменов | M107: - | N107: 3 | O107: - | P107: 5 | Q107: 2 | R107: 1 | S107: 2 | T107: 2 | U107: 2 | V107: 1
A108: Выполнение дипломного проекта (работы) с 18.05 по 14.06 (всего 4 нед.) | I108: диф.зачетов | M108: - | N108: 9 | O108: 9 | P108: 1 | Q108: 4 | R108: 3 | S108: 4 | T108: 0 | U108: 1 | V108: 5
A109: Защита дипломного проекта (работы) с 15.06 по 28.06 (всего 2) | I109: зачетов | M109: - | N109: - | O109: - | P109: - | Q109: 1 | R109: - | S109: 4 | T109: 2 | U109: 2 | V109: 1

Sheet Лист3 (hidden)
C1: 1 | D1: 5
A2: очная | C2: 2 | D2: 10 | E2: основного общего образования
A3: заочная | C3: 3 | E3: начального профессионального образования | J3: по программе базовой подготовки
A4: очно-заочная | C4: 4 | E4: среднего (полного) общего образования | J4: по программе углубленной подготовки
C5: 5
C6: 6
C7: 0 | J7: по специальности среднего профессионального образования
J8: по профессии начального профессионального образования

Sheet Перечень кабинетов
B1: Перечень кабинетов, лабораторий, мастерских и др. для подготовки
B2: по специальности СПО
A3: № | B3: Наименование
B4: Кабинеты:
A5: 1 | B5: гуманитарных и социально-экономических дисциплин;
A6: 2 | B6: иностранного языка;
A7: 3 | B7: педагогики и психологии;
A8: 4 | B8: методики профессионального обучения (по отраслям);
A9: 5 | B9: математики;
A10: 6 | B10: информатики;
A11: 7 | B11: автоматизированных информационных систем;
A12: 8 | B12: инженерной графики;
A13: 9 | B13: технической механики;
A14: 10 | B14: древесиноведения и материаловедения;
A15: 11 | B15: метрологии, стандартизации и сертификации;
A16: 12 | B16: электротехники и электроники;
A17: 13 | B17: правового обеспечения профессиональной деятельности;
A18: 14 | B18: экономики организации;
A19: 15 | B19: безопасности жизнедеятельности;
A20: 16 | B20: гидротермической обработки и консервирования древесины;
A21: 17 | B21: лесопильного производства;
A22: 18 | B22: мебельного и столярно-строительного производств;
A23: 19 | B23: фанерного, плитного и других деревообрабатывающих производств.
B24: Лаборатории:
A25: 1 | B25: информатики и информационно-коммуникационных технологий;
A26: 2 | B26: организации технологического процесса (по отраслям).
A27: 3 | B27: технической механики;
A28: 4 | B28: древесиноведения и материаловедения;
A29: 5 | B29: электротехники, электроники и автоматизации;
A30: 6 | B30: режущего инструмента деревообрабатывающего производства;
A31: 7 | B31: технологического оборудования деревообрабатывающего производства.
B32: Мастеские:
A33: 1 | B33: учебные мастерские;
A34: 2 | B34: полигоны для освоения рабочей профессии или специальности (по отраслям) по профилю подготовки;
A35: 3 | B35: студии технического творчества.
A36: 4 | B36: деревообработки.
B37: Спортивный комплекс:
A38: 1 | B38: Спортивный зал
A39: 2 | B39: Открытый стадион широкого профиля с элементами полосы препятствий
A40: 3 | B40: Стрелковый тир (в любой модификации, включая электронный) или место для стрельбы
B41: Залы:
A42: 1 | B42: Библиотека, читальный зал с выходом в сеть Интернет
A43: 2 | B43: Актовый зал

Sheet Календарный график
J2: Календарный график учебного процесса
B4: Курс | C4: Сентябрь | H4: Октябрь | L4: Ноябрь | P4: Декабрь | U4: Январь | Y4: Февраль | AC4: Март | AH4: Апрель | AL4: Май | AP4: Июнь | AU4: Июль | AY4: Август
C5: 2 | D5: 9 | E5: 16 | F5: 23 | G5: 30 | H5: 7 | I5: 14 | J5: 21 | K5: 28 | L5: 4 | M5: 11 | N5: 18 | O5: 25 | P5: 2 | Q5: 9 | R5: 16 | S5: 23 | T5: 30 | U5: 6 | V5: 13 | W5: 20 | X5: 27 | Y5: 3 | Z5: 10 | AA5: 17 | AB5: 24 | AC5: 10 | AD5: 17 | AE5: 24 | AF5: 23 | AG5: 31 | AH5: 7 | AI5: 14 | AJ5: 21 | AK5: 28 | AL5: 5 | AM5: 12 | AN5: 19 | AO5: 26 | AP5: 2 | AQ5: 9 | AR5: 16 | AS5: 23 | AT5: 30 | AU5: 7 | AV5: 14 | AW5: 21 | AX5: 28 | AY5: 4 | AZ5: 11 | BA5: 18 | BB5: 25
C6: 8 | D6: 15 | E6: 22 | F6: 29 | G6: 6 | H6: 13 | I6: 20 | J6: 27 | K6: 3 | L6: 10 | M6: 17 | N6: 24 | O6: 1 | P6: 8 | Q6: 15 | R6: 22 | S6: 29 | T6: 5 | U6: 12 | V6: 19 | W6: 26 | X6: 2 | Y6: 9 | Z6: 16 | AA6: 23 | AB6: 2 | AC6: 16 | AD6: 23 | AE6: 30 | AF6: 29 | AG6: 6 | AH6: 13 | AI6: 20 | AJ6: 27 | AK6: 4 | AL6: 11 | AM6: 18 | AN6: 25 | AO6: 1 | AP6: 8 | AQ6: 15 | AR6: 22 | AS6: 29 | AT6: 6 | AU6: 13 | AV6: 20 | AW6: 27 | AX6: 3 | AY6: 10 | AZ6: 17 | BA6: 24 | BB6: 31
B7: 1 | T7: - | U7: - | AR7: А | AS7: А | AT7: - | AU7: - | AV7: - | AW7: - | AX7: - | AY7: - | AZ7: - | BA7: - | BB7: -
B8: 2 | T8: - | U8: - | AR8: А | AS8: ОУ | AT8: ОУ | AU8: - | AV8: - | AW8: - | AX8: - | AY8: - | AZ8: - | BA8: - | BB8: -
B9: 3 | P9: ПП | Q9: ПП | R9: ПП | S9: А | T9: - | U9: - | AP9: А | AQ9: ОУ | AR9: ОУ | AS9: ОУ | AT9: ОУ | AU9: - | AV9: - | AW9: - | AX9: - | AY9: - | AZ9: - | BA9: - | BB9: -
B10: 4 | I10: ОУ | J10: ОУ | K10: ОУ | P10: ПП | Q10: ПП | R10: ПП | S10: А | T10: - | U10: - | AN10: ОУ | AO10: ПП | AP10: ПП | AQ10: ПП | AR10: ПП | AS10: ПП | AT10: А
B11: 5 | Q11: ПП | R11: ПП | S11: А | T11: - | U11: - | AC11: ОУ | AD11: ПП | AE11: А | AF11: ПД | AG11: ПД | AH11: ПД | AI11: ПД | AJ11: ПД | AK11: ПД | AL11: ПД | AM11: ПД | AN11: ИА | AO11: ИА | AP11: ИА | AQ11: ИА | AR11: ИА | AS11: ИА
C12: 1 | D12: 2 | E12: 3 | F12: 4 | G12: 5 | H12: 6 | I12: 7 | J12: 8 | K12: 9 | L12: 10 | M12: 11 | N12: 12 | O12: 13 | P12: 14 | Q12: 15 | R12: 16 | S12: 17 | T12: 18 | U12: 19 | V12: 20 | W12: 21 | X12: 22 | Y12: 23 | Z12: 24 | AA12: 25 | AB12: 26 | AC12: 27 | AD12: 28 | AE12: 29 | AF12: 30 | AG12: 31 | AH12: 32 | AI12: 33 | AJ12: 34 | AK12: 35 | AL12: 36 | AM12: 37 | AN12: 38 | AO12: 39 | AP12: 40 | AQ12: 41 | AR12: 42 | AS12: 43 | AT12: 44 | AU12: 45 | AV12: 46 | AW12: 47 | AX12: 48 | AY12: 49 | AZ12: 50 | BA12: 51 | BB12: 52
C13: 1 | D13: 2 | E13: 3 | F13: 4 | G13: 5 | H13: 6 | I13: 7 | J13: 8 | K13: 9 | L13: 10 | M13: 11 | N13: 12 | O13: 13 | P13: 14 | Q13: 15 | R13: 16 | S13: 17 | V13: 1 | W13: 2 | X13: 3 | Y13: 4 | Z13: 5 | AA13: 6 | AB13: 7 | AC13: 8 | AD13: 9 | AE13: 10 | AF13: 11 | AG13: 12 | AH13: 13 | AI13: 14 | AJ13: 15 | AK13: 16 | AL13: 17 | AM13: 18 | AN13: 19 | AO13: 20 | AP13: 21 | AQ13: 22 | AR13: 23 | AS13: 24 | AT13: 25 | AU13: 26
D16: Условные обозначения
G18: - | H18: Теоретическое обучение | R18: ПП | T18: - | U18: Производственная практика | AD18: - | AF18: - | AG18: Каникулы | AN18: ПД | AP18: - | AQ18: Преддипломная практика
E20: ОУ | G20: - | H20: Учебная практика | R20: А | T20: - | U20: Промежуточная атестация | AD20: ИА | AF20: - | AG20: Итоговая аттестация
AK26: ,
AK40: ,
